[Event "CZE-ch U16 Open 2023"]
[Site "Teplice"]
[Date "2023.03.12"]
[Round "2.9"]
[White "Zezula, Jakub"]
[Black "Mametev, Artem"]
[Result "0-1"]
[ECO "B52"]
[WhiteElo "1963"]
[BlackElo "2074"]
[Annotator "TA"]
[PlyCount "64"]
[EventDate "2023.03.09"]
[EventType "swiss"]
[EventCountry "CZE"]
[SourceTitle "playchess.com"]
[Source "ChessBase"]
[SourceQuality "1"]
[TimeControl "40/5400+30:1800+30"]

{[%evp 21,64,25,27,0,0,0,1,0,0,-50,-10,-10,0,-10,0,0,0,0,0,0,0,0,0,0,0,-11,-12,-188,-181,-168,-97,-409,-403,-417,-391,-379,-371,-515,-505,-551,-483,-6319,-6303,-6195,-2816]} 1. e4 {[%emt 0:00:04]} c5 {[%emt 0:00:02]} 2. Nf3 {[%emt 0:00:11]} d6 {[%emt 0:00:03]} 3. Bb5+ {[%emt 0:00:06]} Bd7 {[%emt 0:00:04]} 4. Bxd7+ {[%emt 0:00:06]} Qxd7 {[%emt 0:00:01]} 5. c4 {[%emt 0:00:12]} Nc6 {[%emt 0:00:23]} 6. d4 {[%emt 0:00:10]} cxd4 {[%emt 0:00:03]} 7. Nxd4 {[%emt 0:00:06]} Nf6 {[%emt 0:00:06]} 8. Nc3 {[%emt 0:00:08]} g6 {[%emt 0:00:06]} 9. f3 {[%emt 0:00:25]} Bg7 {[%emt 0:00:04]} 10. Be3 {[%emt 0:00:08]} O-O {[%emt 0:00:08]} 11. O-O {[%emt 0:00:08]} a6 {[%emt 0:00:05]} 12. b3 {[%emt 0:04:58] 12.Nb3 is the recent fashion. B52: Sicilian: Moscow Variation with 3...Bd7.} Nxd4 {[%emt 0:01:39]} 13. Bxd4 {[%emt 0:00:22]} b5 {[%emt 0:00:07]} 14. Nd5 {[%emt 0:11:57] The position is equal.} Nxd5 {[%emt 0:01:35]} 15. Bxg7 {[%emt 0:02:20]} (15. cxd5 $11 Bxd4+ 16. Qxd4) 15... Kxg7 {[%emt 0:00:16]} (15... Ne3 $5 {[%cal Re3d1]} 16. Qe2 Kxg7 17. Qxe3 bxc4 $11) 16. cxd5 {[%emt 0:01:28]} Rfc8 {[%emt 0:06:33]} 17. Rc1 {[%emt 0:03:02]} Rxc1 {[%emt 0:11:19]} 18. Qd4+ {[%emt 0:03:35]} Kg8 {[%emt 0:00:25]} 19. Rxc1 $11 {[%emt 0:00:06][%mdl 4096] Endgame KQR-KQR} Rc8 {[%emt 0:00:15] [#]} 20. Rc3 $146 {[%emt 0:03:26]} ({Predecessor:} 20. Rxc8+ Qxc8 21. Qb6 Qc1+ 22. Kf2 Qd2+ 23. Kg3 Kg7 24. h4 f5 25. Qxa6 Qe1+ 26. Kh2 Qxh4+ {½-½ Zayan,O (2208)-Gagare,S (2421) Abu Dhabi op 22nd 2014 (5)}) 20... Rc7 {[%emt 0:03:20]} 21. Kf1 {[%emt 0:13:56]} Qc8 {[%emt 0:01:39]} 22. Rxc7 {[%emt 0:00:09]} Qxc7 {[%emt 0:00:01] KQ-KQ} 23. Ke2 {[%emt 0:04:00]} Qc1 {[%emt 0:13:11]} 24. Qd2 $2 {[%emt 0:09:33]} (24. Qd1 $11 {and White has nothing to worry.} Qg5 25. g3) 24... Qg1 $19 {[%emt 0:00:52][%csl LRg2,LRh2]} 25. Qg5 {[%emt 0:04:01] [#]} Qxh2 {[%emt 0:18:42]} (25... h6 $1 $19 {[%cal Rh6g5]} 26. Qg4 Kg7) 26. Qxe7 {[%emt 0:04:33][%mdl 8192]} (26. Kf2 $17) 26... Qxg2+ {[%emt 0:00:05]} 27. Ke3 {[%emt 0:02:26]} Qg1+ {[%emt 0:01:23]} ({Worse is} 27... Qxa2 28. Qxd6 Qa1 29. Qd8+ Kg7 30. Qe7 $11) 28. Ke2 {[%emt 0:00:22]} Qh2+ {[%emt 0:00:19]} 29. Ke3 {[%emt 0:01:47]} h5 {[%emt 0:01:04] [#] ...h4 would be deadly. Black is clearly winning.} ({Weaker is} 29... Qxa2 30. Qxd6 Qb2 31. Qe7 $11 (31. Qxa6 Qxb3+ 32. Ke2 Qb2+ 33. Ke3 Qc1+ 34. Ke2 Qc4+ 35. Ke3 Qc3+ 36. Ke2 Qc4+ 37. Ke3 Qc5+ 38. Ke2 Qc4+ $11)) 30. Qe8+ {[%emt 0:00:42]} Kg7 {[%emt 0:00:11] aiming for ...h4.} 31. e5 {[%emt 0:00:59]} (31. Qc6 $142 h4 32. Qc3+ f6 33. Qe1) 31... Qxe5+ {[%emt 0:00:49]} 32. Qxe5+ {[%emt 0:00:28]} dxe5 {[%emt 0:00:03] Weighted Error Value: White=0.93/Black=0.08 (flawless)} 0-1

[Event "CZE-ch U16 Open 2023"]
[Site "Teplice"]
[Date "2023.03.12"]
[Round "2.10"]
[White "Hozda, Max"]
[Black "Mohapl, Tomas"]
[Result "0-1"]
[ECO "D07"]
[WhiteElo "2067"]
[BlackElo "1946"]
[Annotator "TA"]
[PlyCount "92"]
[EventDate "2023.03.09"]
[EventType "swiss"]
[EventCountry "CZE"]
[SourceTitle "playchess.com"]
[Source "ChessBase"]
[SourceQuality "1"]
[TimeControl "40/5400+30:1800+30"]

{[%evp 11,92,34,41,1,37,43,36,34,58,54,52,27,21,17,38,21,53,46,36,46,33,31,43,39,53,38,61,54,74,66,60,57,45,43,67,57,90,60,102,93,98,77,80,77,86,84,87,88,213,214,202,37,48,0,6,0,101,23,50,59,56,35,33,-66,0,0,-7,-34,-29,-52,0,-256,-275,-270,-262,-266,-258,-251,-250,-275,-142,-390,-384]} 1. d4 {[%emt 0:00:04]} d5 {[%emt 0:00:06]} 2. c4 {[%emt 0:00:04]} Nc6 {[%emt 0:00:04]} 3. Nf3 {[%emt 0:01:32]} Bg4 {[%emt 0:00:33]} 4. Bf4 {[%emt 0:14:55]} e6 {[%emt 0:19:06]} 5. e3 {[%emt 0:02:35]} Nf6 {[%emt 0:08:38]} 6. Nc3 {[%emt 0:14:52]} Bb4 {[%emt 0:11:50]} 7. Qb3 {[%emt 0:11:49] D02: 1 d4 d5 2 Nf3 sidelines, including 2...Nf6 3 g3 and 2...Nf6 3 Bf4.} O-O {[%emt 0:14:23]} 8. Ne5 {[%emt 0:02:17]} Bxc3+ {[%emt 0:09:14]} 9. bxc3 {[%emt 0:04:36] [#] White is slightly better.} Na5 $146 {[%emt 0:08:50]} ({Predecessor:} 9... Nxe5 10. dxe5 Nh5 11. Qxb7 d4 12. Qb2 g5 13. Bg3 dxe3 14. f3 Bf5 15. Qc1 Rb8 16. Qxe3 {0-1 Cleven,M (2037)-Kloke,S (2112) NRW Class1 0607 2006 (1.7)}) 10. Qa4 {[%emt 0:02:33] Black must now prevent Nxg4.} Nxc4 {[%emt 0:02:04]} 11. Nxg4 {[%emt 0:01:57]} Nxg4 {[%emt 0:00:50]} 12. Bxc4 {[%emt 0:00:38]} dxc4 {[%emt 0:00:07]} 13. Qxc4 {[%emt 0:01:44]} c6 {[%emt 0:01:39]} 14. f3 {[%emt 0:04:57]} Nf6 {[%emt 0:01:18]} 15. e4 {[%emt 0:01:11] Against Nd5} Nh5 {[%emt 0:03:33]} 16. Be3 {[%emt 0:01:35]} Qh4+ {[%emt 0:05:35]} 17. Bf2 {[%emt 0:01:35]} Qg5 {[%emt 0:00:34]} 18. g3 {[%emt 0:02:16]} e5 {[%emt 0:02:31]} 19. O-O {[%emt 0:13:51]} exd4 {[%emt 0:02:09]} 20. cxd4 {[%emt 0:00:49]} (20. Qxd4 Rfd8 21. Qe3 Qxe3 22. Bxe3 Rd3 $11) (20. Bxd4 Nxg3 21. hxg3 Qxg3+ 22. Kh1 Qh3+ 23. Kg1 Qg3+ 24. Kh1 Qh3+ 25. Kg1 Qg3+ $11) 20... Nf4 {[%emt 0:04:13]} 21. h4 {[%emt 0:00:31]} Qg6 {[%emt 0:00:40]} 22. Kh2 {[%emt 0:00:23]} Ne6 {[%emt 0:01:28]} 23. Rab1 {[%emt 0:00:35]} Nd8 {[%emt 0:01:34]} 24. Rfe1 {[%emt 0:03:23] Black is weak on the dark squares} b6 {[%emt 0:00:40]} 25. Rbc1 {[%emt 0:00:53]} Qd6 {[%emt 0:00:43]} 26. Be3 {[%emt 0:01:36]} Qd7 {[%emt 0:00:31]} 27. Red1 {[%emt 0:01:09]} Rc8 {[%emt 0:00:21]} 28. d5 {[%emt 0:00:42]} c5 {[%emt 0:00:05]} 29. e5 {[%emt 0:00:40]} b5 {[%emt 0:00:33]} (29... Re8 $16 {was worth a try.}) 30. Qe4 $1 $18 {[%emt 0:00:33]} c4 {[%emt 0:00:13]} 31. Bg5 $2 {[%emt 0:03:38]} (31. e6 $1 $18 {[%cal Re6d7]} Nxe6 32. dxe6 Qxe6 33. Qxe6 (33. Bxa7 Qxe4 34. fxe4 Ra8 $16) 33... fxe6 34. Kg2 (34. Bxa7 Ra8 $16)) 31... Re8 {[%emt 0:00:42]} 32. Re1 {[%emt 0:02:31]} (32. a4 $14) 32... h6 {[%emt 0:00:38]} 33. Bf4 {[%emt 0:00:35]} Rc5 {[%emt 0:00:43] [#]} (33... c3 $11 {remains equal.}) 34. Red1 {[%emt 0:01:43]} (34. Rcd1 $1 $16) 34... a5 {[%emt 0:00:21]} (34... c3 {is more complex.} 35. a4 a6 36. Be3 Rc8) 35. Be3 {[%emt 0:00:47]} Rc8 {[%emt 0:00:01]} 36. Bb6 {[%emt 0:00:37]} Nb7 {[%emt 0:01:01]} 37. Re1 {[%emt 0:01:34]} (37. d6 $14) 37... Nc5 {[%emt 0:00:33]} ({Black should try} 37... c3 $1 $15) 38. Bxc5 $11 {[%emt 0:00:46]} Rxc5 {[%emt 0:00:01]} 39. e6 {[%emt 0:00:25]} (39. Rcd1 $5 {[%cal Re5e6]}) 39... fxe6 {[%emt 0:00:50]} (39... Rxd5 $2 40. exd7 Rd2+ 41. Kg1 Rxe4 42. Rxe4 $18) 40. dxe6 {[%emt 0:00:16]} Qd5 {[%emt 0:00:40]} ({Of course not} 40... Qd2+ 41. Kh3 $11) (40... Qc6 $1 $15) 41. f4 $2 {[%emt 0:11:12][%mdl 8192] [#]} (41. Qg6 $11 {and White stays safe.} Rcc8 42. Qf7+ Kh8 43. Rcd1) 41... Qxe4 $1 $19 {[%emt 0:11:43]} 42. Rxe4 {[%emt 0:00:02]} c3 {[%emt 0:00:56]} 43. g4 {[%emt 0:01:25]} Kf8 {[%emt 0:03:19]} 44. f5 {[%emt 0:04:05]} b4 {[%emt 0:03:33]} 45. Kg3 {[%emt 0:01:16]} Ke7 {[%emt 0:02:34]} (45... Rb8 $19 {Hoping for ...Ke7.} 46. e7+ Ke8) 46. Rd4 $2 {[%emt 0:02:31]} (46. Kf4 $17) 46... Rd8 {[%emt 0:03:06] Never resign too early!   Weighted Error Value: White=0.36/Black=0.22 (precise)} 0-1

[Event "CZE-ch U16 Open 2023"]
[Site "Teplice"]
[Date "2023.03.12"]
[Round "2.11"]
[White "Sigut, Ondrej"]
[Black "Prazak, Daniel"]
[Result "0-1"]
[ECO "C01"]
[WhiteElo "1804"]
[BlackElo "2064"]
[Annotator "TA"]
[PlyCount "66"]
[EventDate "2023.03.09"]
[EventType "swiss"]
[EventCountry "CZE"]
[SourceTitle "playchess.com"]
[Source "ChessBase"]
[SourceQuality "1"]
[TimeControl "40/5400+30:1800+30"]

{[%evp 14,66,10,-15,-16,-7,-8,0,-6,-33,-29,-29,-25,-27,-22,-37,-10,-20,-20,-9,-15,-51,-25,-70,-33,-41,0,14,34,25,27,28,43,0,20,1,0,-116,-90,-129,-140,-135,-104,-107,-81,-120,-36,-37,0,0,0,-535,-525,-29977,-29977]} 1. e4 {[%emt 0:00:03]} e6 {[%emt 0:00:10]} 2. d4 {[%emt 0:00:11]} d5 {[%emt 0:00:07]} 3. exd5 {[%emt 0:00:13]} exd5 {[%emt 0:00:09]} 4. Bd3 {[%emt 0:00:09]} c5 {[%emt 0:00:40]} 5. dxc5 {[%emt 0:03:59]} Bxc5 {[%emt 0:00:08]} 6. Nf3 {[%emt 0:00:50]} Nf6 {[%emt 0:00:13]} 7. O-O {[%emt 0:01:01]} O-O {[%emt 0:00:13]} 8. Bg5 {[%emt 0:03:07]} h6 $1 {[%emt 0:00:09] 8...h6 is better than 8...Nc6. C01: French: Exchange Variation.} 9. Bh4 {[%emt 0:00:28]} g5 {[%emt 0:00:10]} 10. Bg3 {[%emt 0:00:05]} Ne4 {[%emt 0:00:09] The position is equal.} 11. Nbd2 {[%emt 0:14:24]} f5 {[%emt 0:03:54] And now ...Nc6 would win.} 12. Bxb8 {[%emt 0:05:14]} Rxb8 {[%emt 0:00:22]} 13. Nb3 {[%emt 0:01:29]} Bb6 {[%emt 0:02:07]} 14. Nfd4 {[%emt 0:04:07]} Qf6 {[%emt 0:05:35]} 15. c3 {[%emt 0:04:17]} Bd7 {[%emt 0:04:01] [#]} 16. a4 $146 {[%emt 0:05:42]} ({Predecessor:} 16. Qc2 Rbe8 17. Rad1 Bc8 18. Kh1 a6 19. Be2 Kh8 20. Bh5 Re7 21. Rde1 Bc7 22. f3 {0-1 Gunina,V (2502)-Gupta,A (2610) Gibraltar Masters 16th 2018 (5)}) 16... a6 {[%emt 0:04:23]} 17. Re1 {[%emt 0:08:51]} Rbe8 {[%emt 0:08:06]} 18. Qc2 {[%emt 0:04:47]} Bc7 {[%emt 0:13:39][%cal Bb6c7,Bc7b8,Bb8a7][%mdl 32]} 19. g3 {[%emt 0:14:18]} Kg7 {[%emt 0:11:12]} (19... Bb6 $15) 20. f3 $11 {[%emt 0:09:49]} Nd6 {[%emt 0:00:23]} 21. Nc5 {[%emt 0:01:10] Excellent horsemanship.} Bc8 {[%emt 0:01:26]} 22. a5 {[%emt 0:02:34]} Bb8 {[%emt 0:05:04]} 23. Rad1 {[%emt 0:04:10]} (23. Qb3 $5 {[%cal Rb3d5]}) 23... Ba7 {[%emt 0:01:23]} 24. Rxe8 {[%emt 0:01:17]} (24. b4 {feels hotter.} f4 25. Qd2 fxg3 26. hxg3 Nf7 27. Bb1) 24... Rxe8 {[%emt 0:00:36][%cal Bf8e8,Be8e5,Be5e1][%mdl 32]} 25. Ncb3 {[%emt 0:00:43]} (25. b4 $11) 25... Nc4 {[%emt 0:02:18]} (25... f4 {is interesting.} 26. Kh1 Re3 27. Qg2 Nc4) 26. Bxc4 {[%emt 0:00:56]} dxc4 {[%emt 0:00:06]} 27. Nc1 {[%emt 0:00:28]} Bd7 {[%emt 0:06:03] Black is more active.} 28. Kg2 {[%emt 0:01:54]} Re5 {[%emt 0:06:53]} 29. b4 {[%emt 0:03:46]} cxb3 {[%emt 0:00:50]} (29... Re3 $17 {Hoping for ...Bxd4.} 30. Nce2 Qe5) 30. Qxb3 $15 {[%emt 0:00:46]} Bc6 {[%emt 0:01:02]} (30... Rxa5 $2 31. Qxb7 Qf7 32. Qxa7 $18) 31. Nxc6 $1 {[%emt 0:01:56]} Qxc6 {[%emt 0:00:05]} ({But not} 31... bxc6 32. Rd7+ Re7 33. Qb7 (33. Rd8 Qf7 $11) 33... Rxd7 34. Qxd7+ Qf7 35. Qxc6 $14) 32. Rd3 $2 {[%emt 0:01:31][%mdl 8192]} (32. Rd8 $11 {and White stays safe.} Re6 33. Qd1) 32... Re1 $19 {[%emt 0:03:17]} (32... Rxa5 33. Rd8 Bc5 34. Qg8+ Kf6 35. Qh8+ Kf7 36. Qh7+ Ke6 37. Qxh6+ Kf7 38. Qh7+ Ke6 39. Qg6+ Ke7 40. Qxg5+ Qf6 41. Re8+ {[%mdl 64] Deflection} Kxe8 42. Qxf6 $18) 33. Rd1 {[%emt 0:01:11] [#]} g4 $1 {[%emt 0:01:46] Weighted Error Value: White=0.67/Black=0.18 (very precise)} 0-1

[Event "CZE-ch U16 Open 2023"]
[Site "Teplice"]
[Date "2023.03.12"]
[Round "2.12"]
[White "Mrazek, Adam"]
[Black "Vilimek, Vit"]
[Result "0-1"]
[ECO "E62"]
[WhiteElo "1745"]
[BlackElo "2018"]
[Annotator "TA"]
[PlyCount "66"]
[EventDate "2023.03.09"]
[EventType "swiss"]
[EventCountry "CZE"]
[SourceTitle "playchess.com"]
[Source "ChessBase"]
[SourceQuality "1"]
[TimeControl "40/5400+30:1800+30"]

{[%evp 20,65,43,26,57,36,31,13,14,27,32,-5,0,-8,-12,-56,-61,-86,-28,-27,-25,-26,-10,-12,0,-14,0,-27,-27,-21,-41,-85,-80,-93,-89,-350,-339,-309,-194,-567,-584,-759,-750,-29993,-29994,-29998,-29999,-29999]} 1. Nf3 Nf6 2. g3 g6 3. Bg2 Bg7 4. O-O O-O 5. c4 d6 6. d4 c6 7. Nc3 Qa5 8. e4 e5 9. d5 cxd5 10. cxd5 b5 {[%cal Bb7b5,Bb5b4,Bb4b3][%mdl 32]} 11. Re1 (11. Nd2 $5 {[%cal Ra2a4]}) 11... Na6 {[#] E62: King's Indian: Fianchetto: 6...c6 and Panno Variation (6...Nc6) without ...a6.} 12. Nd2 $146 (12. a4 {looks sharper.} Nc5 13. b4 Qxb4 14. Nxb5 Ncxe4 15. Ba3) ({Predecessor:} 12. a3 b4 13. Na4 Bd7 14. axb4 Qxb4 15. Bd2 Qb7 16. Bc3 Bb5 17. Nd2 Qd7 18. Bf1 Bxf1 19. Nxf1 {0-1 Anderton,D (2172)-Palliser,R (2444) BCF-chT1a 1415 (4NCL) 2014 (3.146)}) 12... Nc5 13. Nb3 Nxb3 {The position is equal.} 14. Qxb3 b4 15. Nd1 Nd7 $1 16. Bd2 Nc5 $1 17. Qc2 Ba6 $1 18. Bf1 {Prevents Bd3} Bxf1 (18... Rac8 $17 {[%cal Oc5d3] White must now prevent ...Nd3!} 19. Qb1 Bxf1 20. Rxf1 f5 21. exf5 gxf5) 19. Rxf1 $11 {[#]} b3 $1 20. Qc1 Qa4 21. Nc3 Qc4 22. Qb1 (22. Be3 $5 {[%cal Re3c5]}) 22... f5 {[%cal Bf7f5,Bf5f4][%mdl 32]} 23. axb3 Nxb3 24. Ra4 Qc8 25. Qc2 Nd4 26. Qd3 f4 {Prevents Be3. ...Qh3 is the strong threat.} 27. Raa1 $2 {[%mdl 8192] White does not recover from this.} (27. f3 $17) 27... Qh3 $19 {( -> ...f3)} 28. Kh1 Bh6 $40 {[%mdl 128] Black goes for the king.} ({And not} 28... f3 29. Rg1 $17) ({Wrong is} 28... Nb3 $2 29. Rad1 $19) 29. Rab1 $2 (29. Rg1 {nothing else works.}) 29... fxg3 {[%mdl 64] [#] Discovered Attack} 30. fxg3 Bxd2 31. Rxf8+ Rxf8 {Black mates.} 32. Qxd2 Rf1+ {[%mdl 64] Back Rank} 33. Rxf1 Qxf1# {Weighted Error Value: White=0.94/Black=0.14 (very precise)} 0-1

[Event "CZE-ch U16 Open 2023"]
[Site "Teplice"]
[Date "2023.03.13"]
[Round "3.1"]
[White "Janous, Marek"]
[Black "Paseka, Matyas"]
[Result "0-1"]
[ECO "B31"]
[WhiteElo "2124"]
[BlackElo "2082"]
[Annotator "TA"]
[PlyCount "80"]
[EventDate "2023.03.09"]
[EventType "swiss"]
[EventCountry "CZE"]
[SourceTitle "playchess.com"]
[Source "ChessBase"]
[SourceQuality "1"]
[TimeControl "40/5400+30:1800+30"]

{[%evp 13,80,23,31,21,22,22,22,36,38,37,45,38,57,25,32,32,27,17,50,56,104,104,106,99,104,83,88,87,77,87,79,72,93,0,0,0,-21,-127,-120,-163,-165,-147,-132,-170,-137,-229,-189,-306,-303,-309,-290,-420,-406,-601,-445,-429,-429,-416,-441,-462,-439,-653,-628,-645,-632,-617,-606,-725,-753]} 1. e4 {[%emt 0:00:08]} c5 {[%emt 0:00:09]} 2. Nf3 {[%emt 0:00:06]} Nc6 {[%emt 0:00:10]} 3. Bb5 {[%emt 0:01:12]} g6 {[%emt 0:00:09]} 4. Bxc6 {[%emt 0:00:06]} bxc6 {[%emt 0:00:07]} 5. O-O {[%emt 0:00:33]} Bg7 {[%emt 0:00:15]} 6. Re1 {[%emt 0:00:39]} Nh6 {[%emt 0:00:26] 6...Qc7 deserves study.} 7. c3 {[%emt 0:06:17]} O-O {[%emt 0:00:36]} 8. d3 {[%emt 0:01:17] B31: Sicilian: 2...Nc6 3 Bb5 g6.} d6 {[%emt 0:03:25]} 9. h3 {[%emt 0:01:15]} f5 {[%emt 0:05:03]} 10. e5 {[%emt 0:24:28] The position is equal.} Nf7 {[%emt 0:04:36]} 11. Bf4 {[%emt 0:15:55]} h6 {[%emt 0:07:57]} 12. h4 $1 {[%emt 0:05:05]} e6 {[%emt 0:10:09]} 13. Qd2 {[%emt 0:04:35] [#]} (13. exd6 {is interesting.} g5 14. Be5 g4 15. Bxg7 Kxg7 16. Ne5) 13... d5 $146 {[%emt 0:22:03]} ({Predecessor:} 13... dxe5 14. Nxe5 Nxe5 15. Bxe5 Qxh4 16. Na3 Rd8 17. Bxg7 Kxg7 18. Qe3 Rb8 19. Qe5+ {1-0 Engel,L (2553)-Martin,J (2387) GER-chT Christmas U20 blitz 2020 (7.1)}) 14. d4 {[%emt 0:01:39]} c4 {[%emt 0:00:35]} 15. b3 {[%emt 0:00:19]} cxb3 {[%emt 0:03:18]} 16. axb3 {[%emt 0:00:10][%cal Ba2b3,Bb3b4][%mdl 32]} Rb8 {[%emt 0:00:06] [#] Black is weak on the dark squares} (16... a5 $14) 17. b4 $1 $16 {[%emt 0:00:33]} ({Don't take} 17. Rxa7 Rxb3 18. Qe3 Qb6 $14) 17... a6 {[%emt 0:04:00]} 18. Qe3 {[%emt 0:03:19]} Kh7 {[%emt 0:01:51][%cal Bg8h7,Bh7g7,Bg7f8][%mdl 32]} 19. Kh2 {[%emt 0:11:29]} Rg8 {[%emt 0:00:25]} 20. Rh1 {[%emt 0:00:12]} Bf8 {[%emt 0:00:39]} 21. Kg1 {[%emt 0:00:30]} Be7 {[%emt 0:00:42]} 22. Nbd2 {[%emt 0:00:59]} Kg7 {[%emt 0:00:53]} 23. Nf1 {[%emt 0:13:59]} (23. Bh2 $16) 23... g5 $11 {[%emt 0:00:38]} 24. hxg5 {[%emt 0:00:38]} hxg5 {[%emt 0:00:06]} 25. Ng3 {[%emt 0:04:26]} gxf4 $17 {[%emt 0:01:21]} 26. Qxf4 {[%emt 0:00:44]} Kf8 {[%emt 0:04:02]} 27. Nh5 {[%emt 0:01:59][%cal Oh5f6]} Ng5 {[%emt 0:05:20]} 28. Nd2 {[%emt 0:01:11]} Rb7 {[%emt 0:02:30][%cal Oa6a5]} 29. f3 {[%emt 0:00:17]} (29. Qe3 $17) 29... Nf7 {[%emt 0:01:17] [#] ...Bg5 is the strong threat.} 30. Nf6 {[%emt 0:00:33]} (30. Nb3 $142) 30... Bxf6 $19 {[%emt 0:00:16]} 31. exf6 {[%emt 0:00:09]} Qxf6 {[%emt 0:00:16] Strongly threatening ...e5.} 32. Kf2 {[%emt 0:00:17]} (32. Rxa6 {was worth a try.} e5 33. dxe5 Qxe5 34. Qxe5 Nxe5 35. Rh2) 32... e5 {[%emt 0:01:07][%cal Be6e5,Be5e4,Be4e3][%mdl 32]} 33. Qh4 {[%emt 0:00:29]} (33. dxe5 $142 Nxe5 34. Qh6+ Qxh6 35. Rxh6) 33... Qxh4+ {[%emt 0:00:11]} 34. Rxh4 {[%emt 0:00:01]} e4 {[%emt 0:00:15][%cal Oe4e3]} 35. Nb3 {[%emt 0:00:35]} Re7 {[%emt 0:00:18]} 36. Re1 {[%emt 0:00:22] Black is clearly winning.} Nd6 {[%emt 0:01:09]} 37. Na5 {[%emt 0:00:23]} (37. Rh6 $142 Re6 38. Rxe6 Bxe6 39. Nc1) 37... Reg7 {[%emt 0:00:47]} 38. Rh2 {[%emt 0:01:16]} f4 {[%emt 0:00:16] ...Rg3 would be deadly.} 39. Nxc6 {[%emt 0:00:11]} e3+ {[%emt 0:00:07]} 40. Kf1 {[%emt 0:00:18]} Nc4 {[%emt 0:01:06] Weighted Error Value: White=0.43/Black=0.12 (very precise)} 0-1